[Event "*** SCC Grand Prix: Titled Tuesday Blitz"]
[Site "Chess.com"]
[Date "2020.07.21"]
[Round "3"]
[White "Haapana"]
[Black "louis198"]
[Result "0-1"]
[WhiteElo "2340"]
[BlackElo "2569"]
[TimeControl "180+1"]
[EndTime "10:28:48 PDT"]
[Termination "louis198 won by resignation"]

1. d4 {[%clk 0:03:00.9]} 1... e6 {[%clk 0:02:59.6]} 2. e4 {[%clk 0:02:58.6]}
2... d5 {[%clk 0:02:58.5]} 3. e5 {[%clk 0:02:59.1]} 3... c5 {[%clk 0:02:57.7]}
4. c3 {[%clk 0:02:59.7]} 4... Qb6 {[%clk 0:02:57.7]} 5. Nf3 {[%clk 0:02:59.9]}
5... Bd7 {[%clk 0:02:57]} 6. Be2 {[%clk 0:02:59]} 6... cxd4 {[%clk 0:02:56.3]}
7. cxd4 {[%clk 0:02:57.9]} 7... Bb5 {[%clk 0:02:55.9]} 8. Nc3 {[%clk 0:02:41]}
8... Bb4 {[%clk 0:02:54.1]} 9. O-O {[%clk 0:02:39]} 9... Bxc3 {[%clk 0:02:47.7]}
10. bxc3 {[%clk 0:02:39.9]} 10... Bxe2 {[%clk 0:02:47.8]} 11. Qxe2 {[%clk
0:02:40.2]} 11... Qa6 {[%clk 0:02:48.4]} 12. Qb2 {[%clk 0:02:10]} 12... Nc6
{[%clk 0:02:45.4]} 13. Rb1 {[%clk 0:02:06.7]} 13... b6 {[%clk 0:02:43.8]} 14.
Be3 {[%clk 0:01:54.7]} 14... Nge7 {[%clk 0:02:42.5]} 15. Rfc1 {[%clk 0:01:55]}
15... O-O {[%clk 0:02:36.5]} 16. Nd2 {[%clk 0:01:53.3]} 16... Rac8 {[%clk
0:02:26.9]} 17. c4 {[%clk 0:01:49]} 17... dxc4 {[%clk 0:02:24.8]} 18. Nxc4
{[%clk 0:01:48.9]} 18... Na5 {[%clk 0:02:20.9]} 19. Nd6 {[%clk 0:01:48.1]} 19...
Rxc1+ {[%clk 0:02:19.9]} 20. Rxc1 {[%clk 0:01:49]} 20... Nd5 {[%clk 0:02:20.3]}
21. Bd2 {[%clk 0:01:38.2]} 21... Qe2 {[%clk 0:02:03.9]} 22. Qc2 {[%clk
0:01:29.6]} 22... Qg4 {[%clk 0:01:32]} 23. Qe4 {[%clk 0:00:24.4]} 23... Qxe4
{[%clk 0:00:57.7]} 24. Nxe4 {[%clk 0:00:25.3]} 24... Nb7 {[%clk 0:00:58.2]} 25.
Kf1 {[%clk 0:00:25.4]} 25... Rd8 {[%clk 0:00:54.1]} 26. Ke2 {[%clk 0:00:24.6]}
26... Kf8 {[%clk 0:00:54.4]} 27. g3 {[%clk 0:00:23.7]} 27... h6 {[%clk
0:00:54.7]} 28. f4 {[%clk 0:00:23.7]} 28... Ke7 {[%clk 0:00:54.5]} 29. Kd3
{[%clk 0:00:23.3]} 29... Kd7 {[%clk 0:00:53.6]} 30. a3 {[%clk 0:00:23.5]} 30...
f5 {[%clk 0:00:48.3]} 31. exf6 {[%clk 0:00:22.5]} 31... gxf6 {[%clk 0:00:47.7]}
32. Nc3 {[%clk 0:00:22.5]} 32... Nxc3 {[%clk 0:00:46.5]} 33. Bxc3 {[%clk
0:00:22.4]} 33... Nd6 {[%clk 0:00:45]} 34. Bb4 {[%clk 0:00:22.6]} 34... Nb7
{[%clk 0:00:40]} 35. Ke4 {[%clk 0:00:21.3]} 35... a5 {[%clk 0:00:40.2]} 36. Bd2
{[%clk 0:00:20.1]} 36... Nd6+ {[%clk 0:00:40.5]} 37. Kd3 {[%clk 0:00:17.9]}
37... f5 {[%clk 0:00:40.9]} 38. Be3 {[%clk 0:00:16.5]} 38... Ne4 {[%clk
0:00:40.9]} 39. a4 {[%clk 0:00:16.3]} 39... Nf6 {[%clk 0:00:39.1]} 40. Rb1
{[%clk 0:00:13.5]} 40... Nd5 {[%clk 0:00:39.3]} 41. Bd2 {[%clk 0:00:13.7]} 41...
Rc8 {[%clk 0:00:39]} 42. Rc1 {[%clk 0:00:13.9]} 42... Nb4+ {[%clk 0:00:37.6]}
43. Ke3 {[%clk 0:00:12.4]} 43... Rxc1 {[%clk 0:00:36.5]} 44. Bxc1 {[%clk
0:00:13.3]} 44... Kd6 {[%clk 0:00:36.9]} 45. Bd2 {[%clk 0:00:12.8]} 45... Kd5
{[%clk 0:00:31.2]} 46. Bxb4 {[%clk 0:00:12.6]} 46... axb4 {[%clk 0:00:31.1]} 47.
Kd3 {[%clk 0:00:13.5]} 47... b3 {[%clk 0:00:31.5]} 48. Kc3 {[%clk 0:00:13.3]}
48... b2 {[%clk 0:00:32]} 49. Kxb2 {[%clk 0:00:13.8]} 49... Kxd4 {[%clk
0:00:32.9]} 50. Kb3 {[%clk 0:00:14.3]} 50... Kc5 {[%clk 0:00:30.5]} 51. Kc3
{[%clk 0:00:14.1]} 51... h5 {[%clk 0:00:26.4]} 52. h3 {[%clk 0:00:07.8]} 52...
Kd5 {[%clk 0:00:26.3]} 53. Kb4 {[%clk 0:00:07.5]} 53... e5 {[%clk 0:00:21]} 54.
fxe5 {[%clk 0:00:06.2]} 54... Kxe5 {[%clk 0:00:21.6]} 55. h4 {[%clk 0:00:05.8]}
55... f4 {[%clk 0:00:20.5]} 56. gxf4+ {[%clk 0:00:05.4]} 56... Kxf4 {[%clk
0:00:21.4]} 57. Kb5 {[%clk 0:00:05.9]} 57... Kg4 {[%clk 0:00:22.3]} 58. Kxb6
{[%clk 0:00:06.7]} 58... Kxh4 {[%clk 0:00:23.2]} 59. a5 {[%clk 0:00:07.3]} 59...
Kg3 {[%clk 0:00:23.8]} 60. a6 {[%clk 0:00:08.2]} 60... h4 {[%clk 0:00:24.6]} 61.
a7 {[%clk 0:00:09.1]} 61... h3 {[%clk 0:00:25.5]} 62. a8=Q {[%clk 0:00:09.8]}
62... Kh2 {[%clk 0:00:24.8]} 63. Qh1+ {[%clk 0:00:10.7]} 63... Kxh1 {[%clk
0:00:25.1]} 0-1

[Event "*** SCC Grand Prix: Titled Tuesday Blitz"]
[Site "Chess.com"]
[Date "2020.07.21"]
[Round "3"]
[White "fischercapa"]
[Black "Oneofmyturns"]
[Result "0-1"]
[WhiteElo "2494"]
[BlackElo "2732"]
[TimeControl "180+1"]
[EndTime "10:28:49 PDT"]
[Termination "Oneofmyturns won by resignation"]

1. e4 {[%clk 0:03:00.6]} 1... e5 {[%clk 0:02:59.7]} 2. Nc3 {[%clk 0:03:00]} 2...
Nf6 {[%clk 0:02:59.6]} 3. f4 {[%clk 0:03:00.3]} 3... exf4 {[%clk 0:03:00.5]} 4.
d4 {[%clk 0:02:58.7]} 4... d5 {[%clk 0:02:57.3]} 5. e5 {[%clk 0:02:57.5]} 5...
Bg4 {[%clk 0:02:48.3]} 6. Be2 {[%clk 0:02:20.1]} 6... Bxe2 {[%clk 0:02:48.2]} 7.
Qxe2 {[%clk 0:02:20.2]} 7... Nfd7 {[%clk 0:02:48.3]} 8. Bxf4 {[%clk 0:02:19.9]}
8... Nb6 {[%clk 0:02:46.7]} 9. Nf3 {[%clk 0:02:17.1]} 9... Qd7 {[%clk
0:02:37.2]} 10. O-O {[%clk 0:02:11.6]} 10... Nc6 {[%clk 0:02:34.5]} 11. Nd1
{[%clk 0:02:05]} 11... O-O-O {[%clk 0:02:28.9]} 12. a4 {[%clk 0:02:04.5]} 12...
a5 {[%clk 0:02:27.1]} 13. c3 {[%clk 0:02:00.7]} 13... Re8 {[%clk 0:02:24.8]} 14.
Ne3 {[%clk 0:01:36.7]} 14... Be7 {[%clk 0:02:22.5]} 15. Qb5 {[%clk 0:01:29.6]}
15... f6 {[%clk 0:02:12.4]} 16. Bg3 {[%clk 0:01:23.9]} 16... Rhf8 {[%clk
0:02:02.2]} 17. b4 {[%clk 0:01:10.6]} 17... axb4 {[%clk 0:00:57.1]} 18. a5
{[%clk 0:01:08.7]} 18... Nc4 {[%clk 0:00:21.4]} 19. Nxd5 {[%clk 0:01:00.5]}
19... N6xe5 {[%clk 0:00:21.7]} 20. Nxe7+ {[%clk 0:00:50.5]} 20... Rxe7 {[%clk
0:00:22.6]} 21. Qxb4 {[%clk 0:00:48.4]} 21... Nxf3+ {[%clk 0:00:22.7]} 22. Rxf3
{[%clk 0:00:46.6]} 22... Nd2 {[%clk 0:00:20.5]} 23. Rd3 {[%clk 0:00:37]} 23...
Ne4 {[%clk 0:00:20.1]} 24. a6 {[%clk 0:00:36.8]} 24... b6 {[%clk 0:00:19.2]} 25.
a7 {[%clk 0:00:30.2]} 25... Kb7 {[%clk 0:00:19.5]} 26. Qa3 {[%clk 0:00:18.1]}
26... Ka8 {[%clk 0:00:19.6]} 27. Re3 {[%clk 0:00:10.4]} 27... Rfe8 {[%clk
0:00:19.8]} 28. Rae1 {[%clk 0:00:08.2]} 28... f5 {[%clk 0:00:19]} 29. Be5 {[%clk
0:00:08.6]} 29... g6 {[%clk 0:00:14.6]} 30. Ra1 {[%clk 0:00:07.8]} 30... Qc6
{[%clk 0:00:13.2]} 31. Qa6 {[%clk 0:00:06.7]} 31... Rd7 {[%clk 0:00:13.1]} 32.
c4 {[%clk 0:00:06.1]} 32... Qb7 {[%clk 0:00:11.8]} 33. Qxb7+ {[%clk 0:00:06.6]}
33... Kxb7 {[%clk 0:00:12.7]} 34. Rea3 {[%clk 0:00:04.6]} 34... Ra8 {[%clk
0:00:13.2]} 35. h3 {[%clk 0:00:04.2]} 35... Nd6 {[%clk 0:00:13.7]} 36. Bxd6
{[%clk 0:00:04.3]} 36... Rxd6 {[%clk 0:00:14.6]} 37. d5 {[%clk 0:00:05.1]} 37...
c6 {[%clk 0:00:14.3]} 38. Re3 {[%clk 0:00:05.3]} 38... Rd7 {[%clk 0:00:10.8]}
39. Re6 {[%clk 0:00:05.2]} 39... cxd5 {[%clk 0:00:10.7]} 40. cxd5 {[%clk
0:00:06.1]} 40... Rxa7 {[%clk 0:00:08.9]} 41. Rb1 {[%clk 0:00:05.6]} 41... Ra6
{[%clk 0:00:08.5]} 42. d6 {[%clk 0:00:06.4]} 42... Ra5 {[%clk 0:00:08.8]} 43.
Re7 {[%clk 0:00:06.8]} 43... Rxe7 {[%clk 0:00:09.3]} 44. dxe7 {[%clk 0:00:07.2]}
44... Re5 {[%clk 0:00:10.2]} 45. Kf2 {[%clk 0:00:05.6]} 45... Rxe7 {[%clk
0:00:10.7]} 46. Kf3 {[%clk 0:00:06.5]} 46... Kc6 {[%clk 0:00:10.8]} 47. Kf4
{[%clk 0:00:07.4]} 47... b5 {[%clk 0:00:11.1]} 48. g4 {[%clk 0:00:08.3]} 48...
fxg4 {[%clk 0:00:11]} 49. hxg4 {[%clk 0:00:09.2]} 49... Kc5 {[%clk 0:00:11.7]}
50. Kg5 {[%clk 0:00:09.8]} 50... b4 {[%clk 0:00:12.1]} 51. Kf6 {[%clk
0:00:10.7]} 51... Rb7 {[%clk 0:00:11.8]} 52. Rc1+ {[%clk 0:00:11.6]} 52... Kd4
{[%clk 0:00:12.1]} 53. Rd1+ {[%clk 0:00:10.6]} 53... Kc3 {[%clk 0:00:12.5]} 54.
Rc1+ {[%clk 0:00:11.2]} 54... Kd2 {[%clk 0:00:12.9]} 55. Rb1 {[%clk 0:00:11.6]}
55... b3 {[%clk 0:00:13.4]} 56. Ke5 {[%clk 0:00:12.2]} 56... b2 {[%clk
0:00:13.4]} 0-1

[Event "*** SCC Grand Prix: Titled Tuesday Blitz"]
[Site "Chess.com"]
[Date "2020.07.21"]
[Round "3"]
[White "51616516516"]
[Black "chessplayer9919"]
[Result "1-0"]
[WhiteElo "2419"]
[BlackElo "2621"]
[TimeControl "180+1"]
[EndTime "10:28:49 PDT"]
[Termination "51616516516 won by checkmate"]

1. d4 {[%clk 0:02:57]} 1... Nf6 {[%clk 0:02:58.8]} 2. c4 {[%clk 0:02:56.5]} 2...
c5 {[%clk 0:02:58.1]} 3. Nf3 {[%clk 0:02:55.9]} 3... cxd4 {[%clk 0:02:51.9]} 4.
Nxd4 {[%clk 0:02:56.8]} 4... Nc6 {[%clk 0:02:51.6]} 5. Nc3 {[%clk 0:02:56.5]}
5... e6 {[%clk 0:02:51]} 6. g3 {[%clk 0:02:55.8]} 6... Be7 {[%clk 0:02:50.7]} 7.
Bg2 {[%clk 0:02:55.6]} 7... O-O {[%clk 0:02:42.6]} 8. O-O {[%clk 0:02:55.9]}
8... Qc7 {[%clk 0:02:39.2]} 9. Bf4 {[%clk 0:02:51]} 9... d6 {[%clk 0:02:36.7]}
10. Ndb5 {[%clk 0:02:40.8]} 10... Qb6 {[%clk 0:02:32.3]} 11. Bxd6 {[%clk
0:02:34.4]} 11... Rd8 {[%clk 0:02:31.2]} 12. c5 {[%clk 0:02:34.2]} 12... Qa5
{[%clk 0:02:30.1]} 13. a3 {[%clk 0:02:18.4]} 13... Rd7 {[%clk 0:02:21.9]} 14. b4
{[%clk 0:02:10.7]} 14... Qd8 {[%clk 0:02:21.5]} 15. Bxe7 {[%clk 0:02:01.5]}
15... Qxe7 {[%clk 0:02:20.1]} 16. Qb3 {[%clk 0:01:49.5]} 16... Ne8 {[%clk
0:01:55]} 17. Rad1 {[%clk 0:01:45.1]} 17... a6 {[%clk 0:01:54.7]} 18. Bxc6
{[%clk 0:01:36]} 18... Rxd1 {[%clk 0:01:53]} 19. Rxd1 {[%clk 0:01:31]} 19...
bxc6 {[%clk 0:01:53.9]} 20. Nd6 {[%clk 0:01:26.3]} 20... Nc7 {[%clk 0:01:50.8]}
21. Na4 {[%clk 0:01:16.6]} 21... e5 {[%clk 0:01:02.2]} 22. Nb6 {[%clk 0:01:14]}
22... Be6 {[%clk 0:00:58.3]} 23. Qa4 {[%clk 0:01:00.6]} 23... Rd8 {[%clk
0:00:42.3]} 24. Qxc6 {[%clk 0:00:59.2]} 24... Nb5 {[%clk 0:00:40.2]} 25. a4
{[%clk 0:00:45.9]} 25... Nd4 {[%clk 0:00:36.8]} 26. Qe4 {[%clk 0:00:37.8]} 26...
f6 {[%clk 0:00:21.1]} 27. h4 {[%clk 0:00:13.2]} 27... Bb3 {[%clk 0:00:17.8]} 28.
Rxd4 {[%clk 0:00:11.9]} 28... Qe6 {[%clk 0:00:13.7]} 29. Rd2 {[%clk 0:00:05.4]}
29... h5 {[%clk 0:00:13.6]} 30. Kg2 {[%clk 0:00:02.9]} 30... Qe7 {[%clk
0:00:05.8]} 31. Qe3 {[%clk 0:00:03]} 31... Be6 {[%clk 0:00:04.4]} 32. Nd5 {[%clk
0:00:03.2]} 32... Qd7 {[%clk 0:00:04]} 33. Nc3 {[%clk 0:00:03]} 33... Qc6+
{[%clk 0:00:03.9]} 34. f3 {[%clk 0:00:02.2]} 34... Qc7 {[%clk 0:00:04.2]} 35. b5
{[%clk 0:00:02.4]} 35... axb5 {[%clk 0:00:04]} 36. axb5 {[%clk 0:00:03.3]} 36...
Qe7 {[%clk 0:00:04.9]} 37. b6 {[%clk 0:00:03.3]} 37... Bc8 {[%clk 0:00:04.5]}
38. b7 {[%clk 0:00:03.6]} 38... Bxb7 {[%clk 0:00:03.9]} 39. Nxb7 {[%clk
0:00:04.5]} 39... Rxd2 {[%clk 0:00:03.9]} 40. Qxd2 {[%clk 0:00:05.4]} 40... Kh7
{[%clk 0:00:03.7]} 41. Qd5 {[%clk 0:00:06.3]} 41... Qe8 {[%clk 0:00:02.3]} 42.
Qe4+ {[%clk 0:00:06.3]} 42... Kh8 {[%clk 0:00:02.2]} 43. c6 {[%clk 0:00:06.5]}
43... Qc8 {[%clk 0:00:02.3]} 44. Nb5 {[%clk 0:00:05.3]} 44... Qe6 {[%clk
0:00:01.8]} 45. c7 {[%clk 0:00:04.2]} 45... Qa2 {[%clk 0:00:02.7]} 46. c8=Q+
{[%clk 0:00:03.7]} 46... Qg8 {[%clk 0:00:03.3]} 47. Qxg8+ {[%clk 0:00:03.7]}
47... Kxg8 {[%clk 0:00:04.2]} 48. Qg6 {[%clk 0:00:04.1]} 48... Kh8 {[%clk
0:00:05.1]} 49. N5d6 {[%clk 0:00:03.7]} 49... Kg8 {[%clk 0:00:06]} 50. Nd8
{[%clk 0:00:03.4]} 50... Kh8 {[%clk 0:00:05.8]} 51. Ne6 {[%clk 0:00:03.3]} 51...
Kg8 {[%clk 0:00:06.7]} 52. Qxg7# {[%clk 0:00:03.3]} 1-0

[Event "*** SCC Grand Prix: Titled Tuesday Blitz"]
[Site "Chess.com"]
[Date "2020.07.21"]
[Round "3"]
[White "Gulkov_Igor"]
[Black "GukeshDommaraju"]
[Result "0-1"]
[WhiteElo "2417"]
[BlackElo "2711"]
[TimeControl "180+1"]
[EndTime "10:28:51 PDT"]
[Termination "GukeshDommaraju won by resignation"]

1. Nf3 {[%clk 0:03:00.9]} 1... d5 {[%clk 0:02:58.6]} 2. d4 {[%clk 0:03:00]} 2...
Nf6 {[%clk 0:02:58.6]} 3. c4 {[%clk 0:02:59.7]} 3... e6 {[%clk 0:02:58.6]} 4.
Nc3 {[%clk 0:02:59.1]} 4... Bb4 {[%clk 0:02:58.1]} 5. Bg5 {[%clk 0:02:58.5]}
5... h6 {[%clk 0:02:57.3]} 6. Bxf6 {[%clk 0:02:58]} 6... Qxf6 {[%clk 0:02:54.9]}
7. e3 {[%clk 0:02:57.7]} 7... O-O {[%clk 0:02:54.5]} 8. Bd3 {[%clk 0:02:56.9]}
8... dxc4 {[%clk 0:02:52.7]} 9. Bxc4 {[%clk 0:02:56.3]} 9... c5 {[%clk 0:02:53]}
10. O-O {[%clk 0:02:55.5]} 10... cxd4 {[%clk 0:02:52.9]} 11. Qxd4 {[%clk
0:02:54.1]} 11... Qxd4 {[%clk 0:02:48.5]} 12. Nxd4 {[%clk 0:02:53.4]} 12... Bxc3
{[%clk 0:02:48.6]} 13. bxc3 {[%clk 0:02:52.9]} 13... Bd7 {[%clk 0:02:43.2]} 14.
Rab1 {[%clk 0:02:47]} 14... Rc8 {[%clk 0:02:41.1]} 15. Be2 {[%clk 0:02:40.5]}
15... b6 {[%clk 0:02:12.4]} 16. Bf3 {[%clk 0:02:38.3]} 16... Nc6 {[%clk
0:02:12.1]} 17. Rfd1 {[%clk 0:02:34]} 17... Nxd4 {[%clk 0:01:56.3]} 18. cxd4
{[%clk 0:02:24.8]} 18... Rab8 {[%clk 0:01:53.4]} 19. Rdc1 {[%clk 0:02:23.6]}
19... Kf8 {[%clk 0:01:52.9]} 20. Kf1 {[%clk 0:02:21.7]} 20... Ke7 {[%clk
0:01:52.5]} 21. Ke1 {[%clk 0:02:21.2]} 21... g5 {[%clk 0:01:48]} 22. Kd2 {[%clk
0:02:20.2]} 22... f5 {[%clk 0:01:46.2]} 23. g3 {[%clk 0:02:16.1]} 23... Kd6
{[%clk 0:01:45.2]} 24. Be2 {[%clk 0:02:11.2]} 24... Bc6 {[%clk 0:01:40.5]} 25.
Rc3 {[%clk 0:02:06.9]} 25... Bd5 {[%clk 0:01:33.6]} 26. Rb2 {[%clk 0:02:00]}
26... Rxc3 {[%clk 0:01:32.2]} 27. Kxc3 {[%clk 0:01:59.4]} 27... g4 {[%clk
0:01:03.5]} 28. a3 {[%clk 0:01:51.7]} 28... h5 {[%clk 0:01:03.2]} 29. Kd2 {[%clk
0:01:25.9]} 29... h4 {[%clk 0:01:02.6]} 30. Rb1 {[%clk 0:00:47.6]} 30... Rh8
{[%clk 0:00:57.1]} 31. Rc1 {[%clk 0:00:39.2]} 31... Rh7 {[%clk 0:00:42.2]} 32.
Ra1 {[%clk 0:00:26.9]} 32... hxg3 {[%clk 0:00:40.5]} 33. hxg3 {[%clk 0:00:25.6]}
33... Rh2 {[%clk 0:00:40.4]} 34. Rf1 {[%clk 0:00:24.8]} 34... Bg2 {[%clk
0:00:35.8]} 35. Rg1 {[%clk 0:00:20.1]} 35... Bd5 {[%clk 0:00:25.3]} 36. Rf1
{[%clk 0:00:19]} 36... a5 {[%clk 0:00:23.7]} 37. Bd3 {[%clk 0:00:16.4]} 37...
Kc6 {[%clk 0:00:19.6]} 38. Kc3 {[%clk 0:00:15.6]} 38... b5 {[%clk 0:00:19.1]}
39. Rb1 {[%clk 0:00:14.8]} 39... Rxf2 {[%clk 0:00:16.9]} 40. Bxb5+ {[%clk
0:00:14]} 40... Kd6 {[%clk 0:00:16.3]} 41. Bd3 {[%clk 0:00:13.6]} 41... Rf3
{[%clk 0:00:15.6]} 42. Kd2 {[%clk 0:00:13.1]} 42... Rxg3 {[%clk 0:00:15.5]} 43.
Rb6+ {[%clk 0:00:12.9]} 43... Kc7 {[%clk 0:00:15.3]} 44. Ra6 {[%clk 0:00:12.4]}
44... Rg2+ {[%clk 0:00:15.5]} 45. Kc3 {[%clk 0:00:12.2]} 45... g3 {[%clk
0:00:15.6]} 46. Rxa5 {[%clk 0:00:11.9]} 46... Ra2 {[%clk 0:00:15.4]} 47. Ra7+
{[%clk 0:00:11.5]} 47... Kb6 {[%clk 0:00:13]} 48. Rg7 {[%clk 0:00:11.3]} 48...
g2 {[%clk 0:00:13.4]} 49. Kb4 {[%clk 0:00:08.7]} 49... Ra1 {[%clk 0:00:13]} 0-1

[Event "*** SCC Grand Prix: Titled Tuesday Blitz"]
[Site "Chess.com"]
[Date "2020.07.21"]
[Round "3"]
[White "CrushingKings"]
[Black "Aronyak1"]
[Result "0-1"]
[WhiteElo "2529"]
[BlackElo "2785"]
[TimeControl "180+1"]
[EndTime "10:28:52 PDT"]
[Termination "Aronyak1 won by resignation"]

1. e4 {[%clk 0:03:00.9]} 1... c5 {[%clk 0:02:58.5]} 2. d4 {[%clk 0:03:00.9]}
2... cxd4 {[%clk 0:02:58.5]} 3. c3 {[%clk 0:03:01.6]} 3... d3 {[%clk 0:02:58.6]}
4. Bxd3 {[%clk 0:03:01.6]} 4... Nc6 {[%clk 0:02:59.2]} 5. c4 {[%clk 0:03:02]}
5... g6 {[%clk 0:02:59.2]} 6. Nf3 {[%clk 0:03:02.5]} 6... Bg7 {[%clk 0:02:59.6]}
7. h3 {[%clk 0:03:03.2]} 7... d6 {[%clk 0:02:58.8]} 8. O-O {[%clk 0:03:03.6]}
8... Nf6 {[%clk 0:02:57.9]} 9. Nc3 {[%clk 0:03:04]} 9... O-O {[%clk 0:02:58.2]}
10. Be3 {[%clk 0:03:04.5]} 10... Be6 {[%clk 0:02:57.5]} 11. Rc1 {[%clk
0:03:04.8]} 11... Rc8 {[%clk 0:02:56.8]} 12. b3 {[%clk 0:03:05]} 12... Nd7
{[%clk 0:02:56.8]} 13. Qe2 {[%clk 0:03:04.8]} 13... Qa5 {[%clk 0:02:54.4]} 14.
Nd5 {[%clk 0:03:03.1]} 14... Bxd5 {[%clk 0:02:54.2]} 15. exd5 {[%clk 0:03:04]}
15... Nce5 {[%clk 0:02:52.8]} 16. Bb1 {[%clk 0:02:52.4]} 16... Nxf3+ {[%clk
0:02:51]} 17. Qxf3 {[%clk 0:02:53.3]} 17... a6 {[%clk 0:02:43.9]} 18. Bg5 {[%clk
0:02:37.2]} 18... Rfe8 {[%clk 0:02:39.1]} 19. Rfe1 {[%clk 0:02:35.9]} 19... Bf6
{[%clk 0:02:34]} 20. Qg4 {[%clk 0:02:03.8]} 20... h5 {[%clk 0:02:10.2]} 21. Qh4
{[%clk 0:01:55.4]} 21... b5 {[%clk 0:02:04.4]} 22. f4 {[%clk 0:01:21.5]} 22...
bxc4 {[%clk 0:01:54.6]} 23. bxc4 {[%clk 0:01:22.4]} 23... Bxg5 {[%clk
0:01:44.6]} 24. Qxg5 {[%clk 0:01:21.1]} 24... Kg7 {[%clk 0:01:01.2]} 25. Bxg6
{[%clk 0:01:20.4]} 25... Nf6 {[%clk 0:00:30]} 26. Bf5+ {[%clk 0:00:56.9]} 26...
Kf8 {[%clk 0:00:28.7]} 27. Bxc8 {[%clk 0:00:18.7]} 27... Rxc8 {[%clk 0:00:28.5]}
28. Qh6+ {[%clk 0:00:19.3]} 28... Kg8 {[%clk 0:00:28.9]} 29. Rxe7 {[%clk
0:00:19.4]} 29... Qd2 {[%clk 0:00:26.7]} 30. Rce1 {[%clk 0:00:19.3]} 30... Qd4+
{[%clk 0:00:25]} 31. Kh2 {[%clk 0:00:18.6]} 31... Rf8 {[%clk 0:00:18.9]} 32.
Qg5+ {[%clk 0:00:18.6]} 32... Kh8 {[%clk 0:00:18.9]} 33. R1e3 {[%clk 0:00:14.7]}
33... Nh7 {[%clk 0:00:17.2]} 34. Qh6 {[%clk 0:00:12.2]} 34... Qf6 {[%clk
0:00:15.6]} 35. Qxf6+ {[%clk 0:00:11.1]} 35... Nxf6 {[%clk 0:00:16.5]} 36. Ra7
{[%clk 0:00:09.5]} 36... Kg7 {[%clk 0:00:16.5]} 37. Ree7 {[%clk 0:00:10]} 37...
Kg6 {[%clk 0:00:16.1]} 38. Rxa6 {[%clk 0:00:08.9]} 38... Rc8 {[%clk 0:00:15.9]}
39. Rxd6 {[%clk 0:00:09]} 39... Rxc4 {[%clk 0:00:16]} 40. f5+ {[%clk 0:00:08.4]}
40... Kg7 {[%clk 0:00:15.2]} 41. Ra7 {[%clk 0:00:05.6]} 41... h4 {[%clk
0:00:14.4]} 42. Rxf6 {[%clk 0:00:03.7]} 42... Kxf6 {[%clk 0:00:14.5]} 43. Ra6+
{[%clk 0:00:04.2]} 43... Kxf5 {[%clk 0:00:14.8]} 44. Rh6 {[%clk 0:00:04.8]}
44... Kg5 {[%clk 0:00:13.9]} 45. Rh7 {[%clk 0:00:04.5]} 45... Kg6 {[%clk
0:00:13.8]} 46. Rh8 {[%clk 0:00:04.2]} 46... Rd4 {[%clk 0:00:14.4]} 47. Rd8
{[%clk 0:00:04.5]} 47... Ra4 {[%clk 0:00:14.7]} 48. d6 {[%clk 0:00:04.4]} 48...
Kf6 {[%clk 0:00:15.1]} 49. Re8 {[%clk 0:00:02.6]} 49... Rd4 {[%clk 0:00:14.6]}
50. Rh8 {[%clk 0:00:02.7]} 50... Kg7 {[%clk 0:00:14.5]} 51. Rd8 {[%clk
0:00:01.3]} 51... Kf6 {[%clk 0:00:14.1]} 52. a4 {[%clk 0:00:01.8]} 52... Rxa4
{[%clk 0:00:13.4]} 53. Re8 {[%clk 0:00:02]} 53... Rd4 {[%clk 0:00:13.3]} 54. g3
{[%clk 0:00:02.4]} 54... Rd2+ {[%clk 0:00:13]} 55. Kg1 {[%clk 0:00:02.9]} 55...
hxg3 {[%clk 0:00:13.4]} 56. Rg8 {[%clk 0:00:03.8]} 56... Rd3 {[%clk 0:00:13.4]}
57. Rxg3 {[%clk 0:00:04.4]} 57... Rxg3+ {[%clk 0:00:13.2]} 58. Kf2 {[%clk
0:00:05]} 58... Rd3 {[%clk 0:00:14.1]} 0-1